bitfinex-derivatives/quotes_SOLF0:USTF0_20251126
["timestamp","ask_amount","ask_price","bid_price","bid_amount"]
[1764131055180,5.13675565,138.43,138.4,0.05149347]
[1764131055679,1.87214885,138.44,138.4,0.05149347]
[1764131055880,6.5046,138.43,138.4,0.05149347]
[1764131058687,5.13675565,138.44,138.4,0.05149347]
[1764131059185,6.5041,138.44,138.4,0.05149347]
[1764131062191,101.1745,138.44,138.4,0.05149347]
[1764131062495,1.87214885,138.41,138.4,0.05149347]
[1764131062686,1.87214885,138.41,138.32,1.87214885]
[1764131063686,0.05314304,138.38,138.35,0.0457439]
[1764131071696,6.5075,138.37,138.35,0.0457439]
[1764131073599,0.05314304,138.38,138.35,0.0457439]
[1764131074301,6.56014304,138.38,138.35,0.0457439]
[1764131076003,6.5074,138.37,138.35,0.0457439]
[1764131080301,0.05314304,138.38,138.35,0.0457439]
[1764131082293,6.56004304,138.38,138.35,0.0457439]
[1764131082499,0.05314304,138.38,138.35,0.0457439]
[1764131083302,0.05314304,138.38,138.35,6.5539439]
[1764131083710,0.05314304,138.38,138.35,0.0457439]
[1764131084313,6.56014304,138.38,138.35,0.0457439]
[1764131084707,0.05314304,138.38,138.35,0.0457439]
[1764131086313,6.5074,138.37,138.35,0.0457439]
[1764131087914,0.05314304,138.38,138.35,0.0457439]
[1764131089916,6.56004304,138.38,138.35,0.0457439]
[1764131093012,6.5075,138.37,138.35,0.0457439]
[1764131099623,11.62090545,138.37,138.35,0.0457439]
[1764131100612,101.2353,138.36,138.26,13.53842143]
[1764131100818,109.28335768,138.35,138.24,13.53842143]
[1764131101113,101.2568,138.33,138.23,13.53842143]
[1764131101521,101.2568,138.33,138.22,38.25842143]
[1764131101821,0.0556491,138.29,138.26,0.04847638]
[1764131103419,6.5668491,138.29,138.26,0.04847638]
[1764131103624,0.0556491,138.29,138.26,0.04847638]
[1764131109722,0.0556491,138.29,138.2,6.5151]
[1764131109926,0.0556491,138.29,138.18,27.64519693]
[1764131109927,104.21709693,138.28,138.18,27.64519693]
[1764131110626,6.5113,138.29,138.19,101.3558]
[1764131110929,0.05401829,138.25,138.23,0.05522288]
[1764131131047,0.05401829,138.25,138.23,6.56882288]
[1764131131245,1.875405,138.34,138.24,26.615405]
[1764131131450,1.875405,138.34,138.24,127.932205]
[1764131131747,6.5093,138.33,138.27,6.5119]
[1764131132149,0.04976986,138.31,138.29,0.05001101]
[1764131140757,0.04976986,138.31,138.29,6.56091101]
[1764131141666,5.10933824,138.38,138.29,103.20601601]
[1764131141667,11.61643824,138.38,138.29,103.20601601]
[1764131141955,6.5071,138.38,138.29,103.156005]
[1764131142551,0.04357517,138.35,138.32,0.05096385]
[1764131143357,0.04357517,138.35,138.32,6.56046385]
[1764131143753,0.04357517,138.35,138.32,0.05096385]
[1764131145349,6.55197517,138.35,138.32,0.05096385]
[1764131146754,0.04357517,138.35,138.32,0.05096385]
[1764131152856,0.04357517,138.35,138.32,6.56046385]
[1764131157968,0.04357517,138.35,138.33,6.509]
[1764131159362,0.04357517,138.35,138.33,8.384405]
[1764131159872,0.04357517,138.35,138.34,24.72]
[1764131160963,0.04357517,138.35,138.33,24.72]
[1764131161871,107.87301633,138.45,138.33,24.72]
[1764131161872,101.1332,138.5,138.38,101.218]
[1764131162074,1.875405,138.48,138.39,26.595405]
[1764131162874,1.875405,138.48,138.42,0.05553699]
[1764131164266,6.5033,138.46,138.42,0.05553699]
[1764131164869,8.377805,138.48,138.42,0.05553699]
[1764131165071,6.5024,138.48,138.42,0.05553699]
[1764131165366,1.875405,138.49,138.42,0.05553699]
[1764131165768,8.377305,138.49,138.42,0.05553699]
[1764131166069,6.5019,138.49,138.42,0.05553699]
[1764131166276,6.5019,138.49,138.42,6.56023699]
[1764131166768,1.875405,138.5,138.42,0.05553699]
[1764131167164,101.1456,138.48,138.42,0.05553699]
[1764131167373,1.875405,138.48,138.42,0.05553699]
[1764131168373,1.875405,138.46,138.42,0.05553699]
[1764131168774,101.1412,138.49,138.42,0.05553699]
[1764131169076,1.875405,138.46,138.42,0.05553699]
[1764131170978,6.5018,138.49,138.42,0.05553699]
[1764131173272,6.5024,138.48,138.42,0.05553699]
[1764131175268,6.5024,138.48,138.42,6.56033699]
[1764131175870,6.5024,138.48,138.42,0.05553699]
[1764131176378,6.5028,138.47,138.42,0.05553699]
[1764131180171,8.378205,138.47,138.42,0.05553699]
[1764131181183,1.875405,138.47,138.42,0.05553699]
[1764131184188,1.875405,138.45,138.42,0.05553699]
[1764131185186,6.5041,138.44,138.42,0.05553699]
[1764131186483,6.5034,138.46,138.42,0.05553699]
[1764131186703,1.875405,138.45,138.42,0.05553699]
[1764131187581,6.5041,138.44,138.42,0.05553699]
[1764131197886,6.5055,138.41,138.35,6.508]
[1764131198087,5.10481816,138.43,138.32,101.2621]
[1764131198286,24.74,138.44,138.33,2.92393991]
[1764131198486,24.74,138.44,138.33,104.17563991]
[1764131198994,0.05259535,138.4,138.37,0.05109071]
[1764131202087,0.05259535,138.4,138.38,6.5066]
[1764131207885,0.05259535,138.4,138.37,24.79109071]
[1764131208099,0.05259535,138.4,138.37,0.05109071]
[1764131209403,6.5066,138.39,138.37,0.05109071]
[1764131212395,0.05259535,138.4,138.37,0.05109071]
[1764131212800,6.55859535,138.4,138.37,0.05109071]
[1764131214100,0.05259535,138.4,138.37,0.05109071]
[1764131217392,6.55859535,138.4,138.37,0.05109071]
[1764131220505,0.05259535,138.4,138.37,0.05109071]
[1764131226917,0.05259535,138.4,138.38,6.5065]
[1764131227211,0.05259535,138.4,138.37,0.05109071]
[1764131233412,0.05259535,138.4,138.38,6.5066]
[1764131235815,0.05259535,138.4,138.38,9.6466]
[1764131236008,0.05259535,138.4,138.38,6.5066]
[1764131236202,0.05259535,138.4,138.38,9.6466]
[1764131236408,0.05259535,138.4,138.39,3.14]
[1764131241922,6.5039,138.45,138.4,3.14]
[1764131242111,5.1323354,138.46,138.42,3.14]
[1764131242312,5.1323354,138.52,138.45,3.14]
[1764131242522,5.1323354,138.53,138.45,3.14]
[1764131242822,5.1323354,138.54,138.48,0.04735306]
[1764131243024,7.95722315,138.55,138.48,0.04735306]
[1764131243321,1.25693027,138.55,138.48,0.04735306]
[1764131244113,102.35443027,138.55,138.48,0.04735306]
[1764131244727,2.92393991,138.53,138.48,0.04735306]
[1764131245714,9.42403991,138.53,138.48,0.04735306]
[1764131247725,6.5001,138.53,138.48,0.04735306]
[1764131247929,6.5001,138.53,138.48,3.18735306]
[1764131251027,6.5004,138.52,138.48,0.04735306]
[1764131252536,8.36974044,138.52,138.48,0.04735306]
[1764131254436,1.86934044,138.52,138.48,0.04735306]
[1764131254935,1.86934044,138.5,138.48,0.04735306]
[1764131256032,101.1417,138.49,138.41,3.14]
[1764131256332,1.86934044,138.46,138.41,3.14]
[1764131257034,0.04930361,138.45,138.42,0.04875363]
[1764131257537,6.55300361,138.45,138.42,0.04875363]
[1764131257726,1.86934044,138.44,138.42,0.04875363]
[1764131259346,8.37344044,138.44,138.42,0.04875363]
[1764131263538,6.506,138.4,138.33,3.08]
[1764131263737,8.37534044,138.4,138.33,3.08]
[1764131264537,0.049232,138.38,138.36,3.08]
[1764131265439,8.37434044,138.43,138.36,3.08]
[1764131265440,6.505,138.43,138.37,3.08]
[1764131266344,6.505,138.43,138.35,1.86934044]
[1764131266345,0.04902787,138.41,138.4,3.08]
[1764131283956,0.04902787,138.41,138.39,2.94275207]
[1764131289065,6.55462787,138.41,138.39,2.94275207]
[1764131296862,6.5073,138.37,138.32,2.95]
[1764131297876,0.04852611,138.36,138.34,2.95]
[1764131300574,6.70029288,138.44,138.36,2.95]
[1764131300774,8.56963332,138.47,138.38,2.95]
[1764131300974,1.86934044,138.45,138.38,2.95]
[1764131301277,6.5042,138.44,138.38,2.95]
[1764131301577,6.5042,138.44,138.41,2.95]
[1764131301578,0.046858,138.42,138.41,2.95]
[1764131301969,0.046858,138.42,138.38,2.95]
[1764131302175,1.86934044,138.41,138.38,2.95]
[1764131302479,1.86934044,138.41,138.35,2.95]
[1764131303070,0.05527798,138.39,138.37,2.99962877]
[1764131303366,6.56177798,138.39,138.37,2.99962877]
[1764131304780,0.05527798,138.39,138.37,2.99962877]
[1764131312285,8.43111842,138.39,138.37,0.04962877]
[1764131314590,6.56177798,138.39,138.37,0.04962877]
[1764131328008,6.56177798,138.39,138.37,3.01962877]
[1764131328793,6.56177798,138.39,138.37,0.04962877]
[1764131328999,6.508,138.36,138.33,2.97]
[1764131329903,6.56354588,138.36,138.33,3.01802631]
[1764131330209,6.5085,138.35,138.33,3.01802631]
[1764131333206,6.5085,138.35,138.33,0.04802631]
[1764131333406,6.5085,138.35,138.33,3.01802631]
[1764131337519,0.05554588,138.36,138.33,3.01802631]
[1764131338213,6.5085,138.35,138.33,3.01802631]
[1764131369528,0.05554588,138.36,138.33,3.01802631]
[1764131371822,6.5084,138.35,138.33,3.01802631]
[1764131372028,6.5084,138.35,138.33,0.04802631]
[1764131373132,6.5084,138.35,138.33,3.02802631]
[1764131374936,0.05554588,138.36,138.33,3.02802631]
[1764131381239,1.87290949,138.34,138.33,0.04802631]
[1764131383746,6.5084,138.35,138.33,0.04802631]
[1764131383947,1.87290949,138.34,138.33,0.04802631]
[1764131385944,6.5084,138.35,138.33,0.04802631]
[1764131386146,0.05554588,138.36,138.33,3.03802631]
[1764131386750,6.56344588,138.36,138.33,3.03802631]
[1764131388955,0.05554588,138.36,138.33,3.03802631]
[1764131389157,8.57320237,138.42,138.34,2.99]
[1764131389459,1.87290949,138.42,138.34,2.99]
[1764131389662,1.87290949,138.42,138.35,2.99]
[1764131389863,8.37810949,138.42,138.36,2.99]
[1764131390049,0.0549617,138.4,138.38,3.04458925]
[1764131391262,0.0549617,138.4,138.38,0.05458925]
[1764131391263,8.43397119,138.4,138.38,0.05458925]
[1764131391563,0.0549617,138.4,138.38,3.04458925]
[1764131397265,8.43407119,138.4,138.38,0.05458925]
[1764131397566,6.5611617,138.4,138.38,0.05458925]
[1764131397760,6.5611617,138.4,138.38,3.04458925]
[1764131402366,6.5611617,138.4,138.38,0.05458925]
[1764131402567,6.5611617,138.4,138.33,3.08]
[1764131402568,6.5078,138.36,138.33,3.08]
[1764131402865,1.87290949,138.38,138.33,3.08]
[1764131403370,1.87290949,138.39,138.33,3.08]
[1764131403567,0.05434481,138.37,138.36,3.08]
[1764131409380,0.05434481,138.37,138.35,0.05236293]
[1764131409670,0.05434481,138.37,138.35,3.13236293]
[1764131414976,6.5043,138.44,138.36,3.08]
[1764131415279,1.87290949,138.43,138.36,3.08]
[1764131415871,1.87290949,138.39,138.38,0.04799122]
[1764131416177,8.37970949,138.39,138.38,0.04799122]
[1764131421084,33.09970949,138.39,138.38,0.04799122]
[1764131421579,6.5083,138.35,138.33,3.08]
[1764131422584,6.55692386,138.35,138.33,3.13358475]
[1764131426987,1.87290949,138.34,138.33,0.05358475]
[1764131427589,6.5092,138.33,138.31,3.08]
[1764131427882,1.87290949,138.33,138.29,3.08]
[1764131428687,0.05229276,138.32,138.31,3.08]
[1764131429391,6.56239276,138.32,138.31,3.08]
[1764131430487,0.05229276,138.32,138.31,3.08]
[1764131449299,104.14210233,138.39,138.31,3.08]
[1764131450295,6.55782137,138.36,138.35,3.1]
[1764131457513,6.5097,138.32,138.31,3.1]
[1764131464410,6.5109,138.3,138.28,2.87]
[1764131464612,2.9797983,138.33,138.28,2.87]
[1764131465411,2.9797983,138.33,138.29,0.04853313]
[1764131465615,2.9797983,138.33,138.29,2.91853313]
[1764131466402,6.5103,138.31,138.29,2.91853313]
[1764131467609,6.5103,138.31,138.29,0.04853313]
[1764131472315,0.05149597,138.33,138.29,3.07853313]
[1764131472514,24.77149597,138.33,138.29,3.07853313]
[1764131472719,126.03029597,138.33,138.29,0.04853313]
[1764131472906,6.5103,138.31,138.29,0.04853313]
[1764131478225,6.5103,138.31,138.29,3.07853313]
[1764131478428,6.5103,138.31,138.29,0.04853313]
[1764131484232,6.5103,138.31,138.21,9.00188373]
[1764131484438,101.281,138.3,138.22,3.03]
[1764131484736,24.74,138.29,138.22,3.03]
[1764131484937,6.5126,138.26,138.22,3.03]
[1764131485338,0.05547411,138.25,138.24,3.03]
[1764131485733,0.05547411,138.25,138.24,4.47]
[1764131492950,0.05547411,138.25,138.24,3.03]
[1764131499457,8.38712875,138.29,138.24,3.03]
[1764131499650,6.5114,138.29,138.24,3.03]
[1764131500148,6.5116,138.28,138.24,3.03]
[1764131500343,0.05429075,138.27,138.26,3.03]
[1764131500950,6.511,138.3,138.26,3.03]
[1764131501455,6.5099,138.32,138.26,3.03]
[1764131502061,0.0541005,138.3,138.29,2.92]
[1764131503260,0.0041005,138.3,138.29,2.92]
[1764131503755,8.38462875,138.34,138.29,2.92]
[1764131504559,0.05484653,138.33,138.29,2.92]
[1764131508956,0.00484653,138.33,138.29,9.4309]
[1764131509165,6.5081,138.36,138.3,2.92]
[1764131509861,107.9473354,138.39,138.3,2.92]
[1764131510068,0.04902301,138.36,138.34,2.92]
[1764131512167,1.92475176,138.36,138.34,2.92]
[1764131521370,6.5046,138.43,138.36,2.92]
[1764131521675,8.38032875,138.43,138.36,2.92]
[1764131522173,1.87572875,138.41,138.36,2.92]
[1764131522369,1.87572875,138.39,138.37,0.0533176]
[1764131523369,8.40846882,138.4,138.37,0.0533176]
[1764131523669,8.40846882,138.4,138.37,3.0633176]
[1764131524060,8.40846882,138.4,138.37,0.0533176]
[1764131524264,6.5066,138.39,138.37,0.0533176]
[1764131525073,6.5066,138.39,138.37,3.0633176]
[1764131526065,0.02664007,138.4,138.37,3.0633176]
[1764131527575,6.53264007,138.4,138.37,3.0633176]
[1764131527771,1.90236882,138.4,138.37,0.0533176]
[1764131528182,0.02664007,138.4,138.37,3.0633176]
[1764131529173,6.53274007,138.4,138.37,3.0633176]
[1764131531078,6.5066,138.39,138.37,0.0533176]
[1764131531875,6.5066,138.39,138.37,3.1433176]
[1764131532874,6.5066,138.39,138.37,0.0533176]
[1764131533277,6.5066,138.39,138.37,3.1433176]
[1764131535282,6.5066,138.39,138.37,0.0533176]
[1764131535485,1.87572875,138.38,138.37,0.0533176]
[1764131539893,6.5066,138.39,138.37,3.1433176]
[1764131540092,0.02664007,138.4,138.37,3.1433176]
[1764131541099,6.53274007,138.4,138.37,3.1433176]
[1764131545196,6.5065,138.39,138.37,3.1433176]
[1764131546894,8.38222875,138.39,138.37,0.0533176]
[1764131552000,8.38222875,138.39,138.28,3.09]
[1764131552001,101.2504,138.34,138.28,3.09]
[1764131552310,101.2504,138.34,138.22,1.87572875]
[1764131552311,1.87572875,138.3,138.23,3.09]
[1764131552694,8.38662875,138.3,138.23,3.09]
[1764131553101,0.05551505,138.28,138.26,3.09]
[1764131553905,1.9312438,138.28,138.26,3.09]
[1764131554117,1.9312438,138.28,138.25,3.14426818]
[1764131557004,8.4430438,138.28,138.25,3.14426818]
[1764131557406,6.56731505,138.28,138.25,3.14426818]
[1764131557618,0.05551505,138.28,138.25,3.14426818]
[1764131559416,6.56721505,138.28,138.25,3.14426818]
[1764131561519,6.5122,138.27,138.25,3.14426818]
[1764131565420,0.05551505,138.28,138.25,3.14426818]
[1764131566121,6.56721505,138.28,138.25,3.14426818]
[1764131569820,0.05551505,138.28,138.25,3.14426818]
[1764131573717,0.05551505,138.28,138.25,9.65716818]
[1764131573928,0.05551505,138.28,138.26,3.16]
[1764131574316,2.93028072,138.37,138.27,3.16]
[1764131574513,109.11620106,138.37,138.27,3.16]
[1764131575226,6.5088,138.34,138.28,3.16]
[1764131575413,0.02444262,138.33,138.31,3.20809882]
[1764131576425,0.02444262,138.33,138.31,0.04809882]
[1764131579323,0.02444262,138.33,138.31,3.20809882]
[1764131581323,6.53384262,138.33,138.31,3.20809882]
[1764131582029,6.53384262,138.33,138.31,0.04809882]
[1764131582522,11.49416272,138.33,138.31,0.04809882]
[1764131583619,11.49416272,138.33,138.31,3.00809882]
[1764131583821,0.02444262,138.33,138.31,3.00809882]
[1764131587322,6.53374262,138.33,138.31,3.00809882]
[1764131589335,11.49406272,138.33,138.31,3.00809882]
[1764131589540,6.53374262,138.33,138.31,3.00809882]
[1764131590035,11.49406272,138.33,138.31,3.00809882]
[1764131590236,6.53374262,138.33,138.31,3.00809882]
[1764131590843,1.83476272,138.33,138.31,3.00809882]
[1764131591035,101.2063,138.4,138.31,3.00809882]
[1764131591230,101.2063,138.4,138.31,2.96]
[1764131591531,6.5079,138.36,138.31,2.96]
[1764131591937,6.5079,138.36,138.32,2.91757036]
[1764131592136,6.5086,138.35,138.32,2.91757036]
[1764131592341,6.5086,138.35,138.32,0.04757036]
[1764131593350,6.5086,138.35,138.32,2.91757036]
[1764131595441,6.5089,138.34,138.32,0.04757036]
[1764131595638,24.74,138.33,138.27,2.87]
[1764131596650,0.04757036,138.31,138.29,0.05115863]
[1764131599652,6.55787036,138.31,138.29,0.05115863]
[1764131605857,24.74,138.3,138.29,0.05115863]
[1764131620570,26.61565781,138.3,138.29,0.05115863]
[1764131621668,101.2987,138.27,138.21,2.96]
[1764131621969,1.87565781,138.25,138.21,2.96]
[1764131622359,6.5136,138.24,138.21,2.96]
[1764131622565,6.5630667,138.24,138.21,3.00897018]
[1764131623466,0.0494667,138.24,138.21,3.00897018]
[1764131626877,6.5631667,138.24,138.21,3.00897018]
[1764131628674,6.5631667,138.24,138.22,2.96]
[1764131629076,6.5128,138.26,138.22,2.96]
[1764131629971,0.04879478,138.25,138.22,2.96]
[1764131639281,6.5119,138.28,138.22,9.4742]
[1764131639487,6.5119,138.28,138.23,2.96]
[1764131640086,6.5121,138.27,138.23,2.96]
[1764131640481,6.5121,138.27,138.25,2.96]
[1764131645302,103.15545781,138.3,138.24,0.04826868]
[1764131645303,8.38825781,138.26,138.24,0.04826868]
[1764131645600,101.3149,138.25,138.17,2.9]
[1764131645795,8.39015781,138.22,138.17,2.9]
[1764131646491,0.04873619,138.21,138.18,2.95567714]
[1764131652793,8.39145781,138.19,138.18,0.05567714]
[1764131657004,6.56383619,138.21,138.18,0.05567714]
[1764131657304,6.56383619,138.21,138.18,3.07567714]
[1764131665507,0.04873619,138.21,138.18,3.07567714]
[1764131677519,6.56363619,138.21,138.18,3.07567714]
[1764131678416,0.04873619,138.21,138.18,3.07567714]
[1764131682422,0.04873619,138.21,138.2,3.06]
[1764131682616,6.5135,138.24,138.2,3.06]
[1764131684714,5.27202607,138.26,138.2,3.06]
[1764131684914,5.27202607,138.25,138.22,3.11536412]
[1764131685113,5.27202607,138.26,138.22,3.11536412]
[1764131685320,5.27202607,138.25,138.22,3.11536412]
[1764131685522,5.27202607,138.26,138.22,3.11536412]
[1764131685722,5.27202607,138.25,138.22,3.11536412]
[1764131686024,5.27202607,138.26,138.22,3.11536412]
[1764131686225,5.27202607,138.25,138.22,3.11536412]
[1764131686420,6.5131,138.25,138.22,3.11536412]
[1764131687221,5.28186977,138.24,138.22,3.11536412]
[1764131688024,6.5131,138.25,138.22,3.11536412]
[1764131690328,11.80407974,138.24,138.22,3.11536412]
[1764131690521,6.5136,138.24,138.22,3.11536412]
[1764131693024,5.28937707,138.23,138.22,0.05536412]
[1764131693734,6.5136,138.24,138.22,0.05536412]
[1764131697130,6.5127,138.26,138.23,3.06]
[1764131697429,5.29244724,138.25,138.23,3.06]
[1764131697631,31.44312937,138.29,138.23,3.06]
[1764131697829,5.29257534,138.28,138.23,3.06]
[1764131698027,5.29257534,138.27,138.23,3.06]
[1764131698331,5.29257534,138.26,138.23,3.06]
[1764131698526,6.5121,138.27,138.23,3.06]
[1764131698720,5.28927898,138.26,138.23,3.06]
[1764131698921,6.5121,138.27,138.23,3.06]
[1764131699124,5.28927898,138.26,138.23,3.06]
[1764131699331,6.5121,138.27,138.23,3.06]
[1764131699632,5.28911104,138.26,138.23,3.06]
[1764131699821,6.5121,138.27,138.23,3.06]
[1764131700025,5.28891504,138.26,138.23,3.06]
[1764131700229,6.5121,138.27,138.23,3.06]
[1764131700534,5.2895942,138.26,138.23,3.06]
[1764131700733,6.5121,138.27,138.23,3.06]
[1764131700934,5.28979023,138.26,138.23,3.06]
[1764131701136,6.5121,138.27,138.23,3.06]
[1764131701326,5.29031478,138.26,138.23,3.06]
[1764131701521,5.29130521,138.28,138.23,3.06]
[1764131701726,6.5113,138.29,138.23,3.06]
[1764131701932,5.28968536,138.28,138.23,3.06]
[1764131702132,6.5113,138.29,138.23,3.06]
[1764131702334,11.80213804,138.28,138.24,3.02]
[1764131702528,11.80213804,138.28,138.25,3.07098644]
[1764131702529,5.28864673,138.27,138.25,3.07098644]
[1764131702734,6.5116,138.28,138.25,3.07441487]
[1764131703025,11.80084511,138.27,138.25,3.07441487]
[1764131703226,6.5122,138.27,138.25,3.07441487]
[1764131704934,11.79995642,138.27,138.25,3.07441487]
[1764131705238,6.5122,138.27,138.25,3.07441487]
[1764131705839,11.79983948,138.27,138.25,3.07441487]
[1764131706138,6.5122,138.27,138.25,3.07441487]
[1764131706334,5.28763948,138.28,138.25,3.07441487]
[1764131706533,6.5114,138.29,138.25,3.07441487]
[1764131706730,5.28683316,138.28,138.25,3.07441487]
[1764131706927,6.5114,138.29,138.25,3.07441487]
[1764131707127,5.28683316,138.28,138.25,3.07441487]
[1764131707325,6.5114,138.29,138.25,3.07441487]
[1764131707530,5.28614243,138.28,138.25,3.07441487]
[1764131707839,6.5114,138.29,138.25,3.07441487]
[1764131708039,5.28614243,138.28,138.25,3.07441487]
[1764131708237,6.5114,138.29,138.25,3.07441487]
[1764131708538,5.28623821,138.28,138.25,3.07441487]
[1764131709234,6.5114,138.29,138.25,3.07441487]
[1764131709432,5.28580703,138.28,138.25,3.07441487]
[1764131710741,6.5114,138.29,138.25,3.07441487]
[1764131712943,11.7989299,138.29,138.25,3.07441487]
[1764131713240,6.5114,138.29,138.25,3.07441487]
[1764131713642,11.7989299,138.29,138.25,3.07441487]
[1764131713843,6.5114,138.29,138.25,3.07441487]
[1764131714346,11.7989299,138.29,138.25,3.07441487]
[1764131714646,6.5114,138.29,138.25,3.07441487]
[1764131715042,11.7989299,138.29,138.25,3.07441487]
[1764131715242,6.5114,138.29,138.25,3.07441487]
[1764131715647,11.7989299,138.29,138.25,3.07441487]
[1764131715849,6.5114,138.29,138.25,3.07441487]
[1764131716252,11.7989299,138.29,138.25,3.07441487]
[1764131716444,6.5114,138.29,138.25,3.07441487]
[1764131716953,5.2875299,138.29,138.25,3.07441487]
[1764131717150,5.2875299,138.3,138.25,3.07441487]
[1764131717349,5.2875299,138.32,138.25,3.07441487]
[1764131717548,5.2875299,138.31,138.27,2.93]
[1764131717846,6.5097,138.32,138.26,6.5122]
[1764131717847,6.5097,138.32,138.29,2.93]
[1764131718253,6.5102,138.31,138.29,2.93]
[1764131722951,6.5107,138.3,138.28,0.05079213]
[1764131724560,6.5107,138.3,138.28,2.98079213]
[1764131724862,11.7874576,138.32,138.28,2.98079213]
[1764131725055,6.5099,138.32,138.28,2.98079213]
[1764131725258,11.7874576,138.32,138.28,2.98079213]
[1764131725452,6.5099,138.32,138.28,2.98079213]
[1764131725649,11.7874576,138.32,138.28,2.98079213]
[1764131725952,6.5099,138.32,138.28,2.98079213]
[1764131726153,11.7874576,138.32,138.28,2.98079213]
[1764131726352,6.5099,138.32,138.28,2.98079213]
[1764131726555,11.7874576,138.32,138.28,2.98079213]
[1764131726756,6.5099,138.32,138.28,2.98079213]
[1764131726958,11.7874576,138.32,138.28,2.98079213]
[1764131727168,6.5099,138.32,138.28,2.98079213]
[1764131727370,11.7874576,138.32,138.28,2.98079213]
[1764131727563,6.5099,138.32,138.28,2.98079213]
[1764131727762,11.7874576,138.32,138.28,2.98079213]
[1764131727962,6.5099,138.32,138.28,2.98079213]
[1764131728162,11.7874576,138.32,138.28,2.98079213]
[1764131728363,6.5099,138.32,138.28,2.98079213]
[1764131728563,11.7874576,138.32,138.28,2.98079213]
[1764131728765,6.5103,138.31,138.28,2.98079213]
[1764131732871,6.5107,138.3,138.28,2.98079213]
[1764131733176,6.5107,138.3,138.28,0.05079213]
[1764131733669,6.5107,138.3,138.28,2.98079213]
[1764131734273,5.2775576,138.31,138.28,2.98079213]
[1764131734474,6.5101,138.32,138.28,2.98079213]
[1764131734661,11.7876576,138.32,138.28,2.98079213]
[1764131734867,6.5101,138.32,138.28,2.98079213]
[1764131735272,11.7876576,138.32,138.28,2.98079213]
[1764131735462,6.5101,138.32,138.28,2.98079213]
[1764131735968,11.7876576,138.32,138.28,2.98079213]
[1764131736271,6.5101,138.32,138.28,2.98079213]
[1764131736665,11.7876576,138.32,138.28,2.98079213]
[1764131736864,6.5101,138.32,138.28,2.98079213]
[1764131737270,11.7876576,138.32,138.28,2.98079213]
[1764131737474,6.5101,138.32,138.28,2.98079213]
[1764131737977,11.7876576,138.32,138.28,2.98079213]
[1764131738165,6.5103,138.31,138.28,2.98079213]
[1764131739477,11.7878576,138.31,138.28,2.98079213]
[1764131739672,6.5103,138.31,138.28,2.98079213]
[1764131740380,11.7878576,138.31,138.28,2.98079213]
[1764131740581,6.5103,138.31,138.28,2.98079213]
[1764131742681,5.27459301,138.33,138.29,2.86]
[1764131742881,5.27459301,138.34,138.29,2.86]
[1764131743182,110.02502605,138.39,138.31,2.86]
[1764131743183,5.27336369,138.36,138.31,2.86]
[1764131743378,13.20982937,138.39,138.34,2.86]
[1764131743587,13.20982937,138.39,138.36,2.86]
[1764131743588,5.27090953,138.38,138.36,2.86]
[1764131743881,5.27090953,138.37,138.36,2.86]
[1764131744281,5.27090953,138.38,138.35,2.90747759]
[1764131744476,5.27090953,138.37,138.35,2.90747759]
[1764131744675,5.27090953,138.38,138.35,2.90747759]
[1764131744877,5.27090953,138.37,138.35,2.90747759]
[1764131745087,5.27090953,138.38,138.35,2.90747759]
[1764131745386,5.27090953,138.37,138.35,2.90747759]
[1764131745689,5.27090953,138.38,138.35,2.90747759]
[1764131748186,11.77660953,138.41,138.35,2.90747759]
[1764131748385,6.5057,138.41,138.35,2.90747759]
[1764131749089,1.87439884,138.42,138.36,2.86]
[1764131749879,8.37949884,138.42,138.36,2.86]
[1764131751090,1.87439884,138.42,138.36,2.86]
[1764131751386,7.14530837,138.42,138.36,2.86]
[1764131751987,6.5061,138.4,138.36,2.86]
[1764131753387,103.07849884,138.4,138.35,0.04747759]
[1764131753785,103.07849884,138.4,138.35,2.90747759]
[1764131754185,5.22227368,138.39,138.35,2.90747759]
[1764131754380,6.507,138.38,138.35,2.90747759]
[1764131755189,6.5074,138.37,138.35,0.04747759]
[1764131757297,11.72992635,138.37,138.35,0.04747759]
[1764131757598,1.87439884,138.36,138.35,0.04747759]
[1764131758391,103.10769884,138.36,138.29,2.86]
[1764131758700,1.87439884,138.34,138.29,2.86]
[1764131759489,0.04586001,138.33,138.3,2.91264724]
[1764131760298,6.55516001,138.33,138.3,2.91264724]